fUSD/lending_fUSD_20260127
["ID","MTS","AMOUNT","RATE_DAILY","PERIOD"]
[403810625,1769548255837,-167.636781,0.00043409,7]
[403810626,1769548255846,-167.636781,0.00043409,7]
[403810627,1769548255855,-167.636781,0.00043409,7]
[403810628,1769548255864,-167.636781,0.00043409,7]
[403810629,1769548255873,-167.636781,0.00043409,7]
[403810630,1769548255883,-167.636781,0.00043409,7]
[403810631,1769548255958,-167.63679092,0.00043409,7]
[403810632,1769548255967,-151.0,0.00043409,120]
[403810633,1769548255977,-151.0,0.00043409,120]
[403810634,1769548255986,-151.0,0.00043409,120]
[403810635,1769548255995,-151.0,0.00043409,120]
[403810636,1769548256005,-151.0,0.00043409,120]
[403810637,1769548256014,-189.743151,0.00043409,120]
[403810638,1769548256023,-151.0,0.00043409,120]
[403810639,1769548256032,-151.0,0.00043409,120]
[403810640,1769548256042,-225.060328,0.00043409,120]
[403810641,1769548256051,-411.30887,0.00043409,90]
[403810642,1769548256060,-411.30887,0.00043409,90]
[403810643,1769548256069,-411.30887,0.00043409,90]
[403810644,1769548256079,-411.30887,0.00043409,90]
[403810645,1769548256088,-411.30887,0.00043409,90]
[403810646,1769548256097,-411.30887,0.00043409,90]
[403810647,1769548256106,-411.30887,0.00043409,90]
[403810648,1769548256119,-411.30887,0.00043409,90]
[403810649,1769548256139,-411.30887,0.00043409,90]
[403810650,1769548256158,-411.30887,0.00043409,90]
[403810651,1769548256168,-411.30887,0.00043409,90]
[403810652,1769548256176,-411.308868,0.00043409,90]
[403810653,1769548256187,-169.450243,0.00043409,120]
[403810654,1769548256200,-248.33068,0.00043409,120]
[403810655,1769548256209,-169.450243,0.00043409,120]
[403810656,1769548256218,-248.33068,0.00043409,120]
[403810657,1769548256227,-169.450243,0.00043409,120]
[403810658,1769548256237,-248.33068,0.00043409,120]
[403810659,1769548256246,-468.926574,0.00043409,120]
[403810660,1769548256255,-151.0,0.00043409,120]
[403810661,1769548256269,-468.926574,0.00043409,120]
[403810662,1769548256278,-151.0,0.00043409,120]
[403810663,1769548256288,-468.926574,0.00043409,120]
[403810664,1769548256297,-169.450243,0.00043409,120]
[403810665,1769548256307,-151.0,0.00043409,120]
[403810666,1769548256316,-169.450243,0.00043409,120]
[403810667,1769548256325,-248.33068,0.00043409,120]
[403810668,1769548256334,-169.450243,0.00043409,120]
[403810669,1769548256343,-248.33068,0.00043409,120]
[403810670,1769548256352,-248.33068,0.00043409,120]
[403810671,1769548256361,-468.926574,0.00043409,120]
[403810672,1769548256370,-151.0,0.00043409,120]
[403810673,1769548256380,-468.926574,0.00043409,120]
[403810674,1769548256389,-169.450243,0.00043409,120]
[403810675,1769548256398,-468.926574,0.00043409,120]
[403810676,1769548256407,-169.450243,0.00043409,120]
[403810677,1769548256417,-497.38641343,0.00043409,120]
[403810678,1769548256427,-308.78676023,0.00043409,60]
[403810679,1769548256436,-1373078.41762049,0.00043409,10]
[403810680,1769548256959,-10201.02688643,0.00043409,10]
[403810681,1769548256970,-1860.73995632,0.00043409,10]
[403810682,1769548256983,-323.311332,0.00043409,10]
[403810683,1769548256996,-774.8112373,0.00043409,10]
[403810684,1769548257012,-169.450243,0.00043409,120]
[403810685,1769548257023,-59183.76701042,0.00043409,10]
[403810686,1769548257049,-261.11,0.00028269,2]
[403810687,1769548257058,-1371.8538453,0.00043409,10]
[403810688,1769548257069,-44582.23926234,0.00043409,10]
[403810689,1769548257080,-4786.27866948,0.00043409,10]
[403810690,1769548257091,-1103.93595614,0.00043409,10]
[403810691,1769548257603,-261.11,0.00029141,2]
[403810692,1769548257612,-261.1,0.00030013,2]
[403810693,1769548257622,-169.450243,0.00038356,120]
[403810694,1769548257631,-276.86,0.00038356,120]
[403810695,1769548257640,-248.33068,0.00038356,120]
[403810696,1769548257650,-468.926574,0.00038356,120]
[403810697,1769548257659,-468.926574,0.000394,120]
[403810698,1769548257668,-169.450243,0.000394,120]
[403810699,1769548257678,-248.33068,0.000394,120]
[403810700,1769548257687,-468.926574,0.000394,120]
[403810701,1769548257696,-1118.08,0.00040904,2]
[403810702,1769548257708,-484.83,0.00041479,30]
[403810703,1769548257717,-1231.93,0.00041753,30]
[403810704,1769548257727,-172.27,0.00041753,30]
[403810705,1769548257736,-468.85,0.00041753,30]
[403810706,1769548257745,-248.33068,0.00043409,120]
[403810707,1769548257754,-151.0,0.00043409,120]
[403810708,1769548257763,-248.33068,0.00043409,120]
[403810709,1769548257772,-468.926574,0.00043409,120]
[403810710,1769548257782,-169.450243,0.00043409,120]
[403810711,1769548257791,-151.0,0.00043409,120]
[403810712,1769548257800,-248.33068,0.00043409,120]
[403810713,1769548257809,-468.926574,0.00043409,120]
[403810714,1769548257818,-169.450243,0.00043409,120]
[403810715,1769548257828,-468.926574,0.00043409,120]
[403810716,1769548257838,-169.450243,0.00043409,120]
[403810717,1769548257847,-248.33068,0.00043409,120]
[403810718,1769548257857,-248.33068,0.00043409,120]
[403810719,1769548257866,-468.926574,0.00043409,120]
[403810720,1769548257876,-248.330672,0.00043409,120]
[403810721,1769548257885,-468.926574,0.00043409,120]
[403810722,1769548257894,-468.926569,0.00043409,120]
[403810723,1769548257903,-283427.41501225,0.00043409,10]
[403810724,1769548257915,-34569.494305,0.00043409,10]
[403810725,1769548257926,-2904.87667842,0.00043409,10]
[403810726,1769548257937,-25440.48808433,0.00043409,10]
[403810727,1769548257988,-966.78219392,0.00043409,10]
[403810728,1769548258005,-495.26323143,0.000179,2]
[403810729,1769548258016,-247.68216641,0.000179,2]
[403810730,1769548258025,-15461.5458259,0.00043409,10]
[403810731,1769548258036,-406.89832144,0.00043409,10]
[403810732,1769548258047,-2681.96069926,0.00043409,10]
[403810733,1769548258058,-816.07674479,0.00043409,10]
[403810734,1769548258338,-742.94539779,0.00022982,2]
[403810735,1769548258347,-83.04869215,0.00028064,2]
[403810736,1769548258362,-486.1788,0.00028064,2]
[403810737,1769548258374,-173.71790564,0.00028064,2]
[403810738,1769548258383,-345.61791489,0.00033145,2]
[403810739,1769548258398,-397.3274829,0.00033145,2]
[403810740,1769548258407,-742.94539779,0.00038227,2]
[403810741,1769548258417,-742.94539779,0.00043309,2]
[403810742,1769548258426,-210708.69266542,0.00043409,10]
[403810743,1769548258438,-330.15551753,0.00043409,10]
[403810744,1769548430039,200.0,0.000149,5]
[403810745,1769548702033,-2790.0,0.00015244,2]
[403810746,1769548717524,-2790.0,0.00015244,2]
[403810747,1769548893337,186.224,0.00015017,2]
[403810748,1769548893678,1444.74,0.00015017,2]
[403810749,1769549082439,3000.0,0.000149,5]
[403810750,1769549211112,3751.16,0.00012574,2]
[403810751,1769549225642,3100.0,0.000149,5]
[403810752,1769549227892,6200.0,0.000159,5]
[403810753,1769549238895,572.5809725,0.00015322,5]
[403810754,1769549313906,87127.4190275,0.00016,4]
[403810755,1769549377813,166.66,0.00014077,2]
[403810756,1769549378046,166.66,0.00014374,2]
[403810757,1769549378361,166.66,0.0001467,2]
[403810758,1769549378633,166.66,0.00014967,2]
[403810786,1769549432281,-185.12,0.00015212,2]
[403810788,1769549432291,-185.12,0.00015212,2]
[403810789,1769549432299,-185.12,0.00015212,2]
[403810790,1769549432310,-34.8830935,0.00015212,2]
[403810791,1769549432322,-150.2369065,0.00015212,2]
[403810792,1769549432331,-151.0,0.00015219,2]
[403810793,1769549432340,-600.0,0.0001522,2]
[403810794,1769549432350,-195.0,0.0001522,2]
[403810795,1769549432360,-239.77721828,0.0001522,2]
[403810796,1769549432370,-300.0,0.0001522,2]
[403810797,1769549432381,-1168.8198113,0.00015221,2]
[403810798,1769549432392,-31.1801887,0.00015221,2]
[403810799,1769549432401,-664.31906978,0.00015221,2]
[403810800,1769549432410,-357729.18587521,0.00015222,2]
[403810801,1769549432421,-14715.04399295,0.00015222,2]
[403810802,1769549432431,-26246.20212602,0.00015222,2]
[403810803,1769549432442,-104160.75986465,0.00015222,2]
[403810804,1769549432453,-447.5,0.00015222,2]
[403810805,1769549432466,-7861.63465038,0.00015222,2]
[403810806,1769549432478,-356.82273408,0.00015222,2]
[403810807,1769549432490,-3639.96045773,0.00015222,2]
[403810816,1769549437083,880.156,0.00014941,2]
[403810817,1769549437107,119.844,0.00014941,2]
[403810820,1769549438290,-205.05809,0.00015221,2]
[403810821,1769549438300,-254.97264203,0.00015221,2]
[403810822,1769549438310,-638.6861545,0.00015221,2]
[403810823,1769549438320,-213.94179373,0.00015221,2]
[403810824,1769549438330,-6076.70586651,0.00015222,2]
[403810825,1769549438355,-2068.29829292,0.00015222,2]
[403810826,1769549438409,-9415.94431804,0.00015222,2]
[403810827,1769549438470,-467281.94182151,0.00015222,2]
[403810828,1769549438484,-300.0,0.00015223,2]
[403810829,1769549438494,-250.0,0.00015223,2]
[403810830,1769549438504,-543.6799175,0.00015244,2]
[403810831,1769549438514,-15384.46151684,0.00015244,2]
[403810832,1769549438526,-18028.14714964,0.00015244,2]
[403810834,1769549438536,-353.88730168,0.00015244,2]
[403810836,1769549438546,-161.04189307,0.00015244,2]
[403810838,1769549438555,-166.66,0.00015263,2]
[403810840,1769549438566,-500.0,0.00015322,2]
[403810841,1769549438575,-500.0,0.00015322,2]
[403810844,1769549438586,-500.0,0.00015322,2]
[403810846,1769549438595,-500.0,0.00015322,2]
[403810848,1769549438607,-500.0,0.00015322,2]
[403810850,1769549438615,-500.0,0.00015322,2]
[403810852,1769549438625,-500.0,0.00015322,2]
[403810854,1769549438634,-169.71523397,0.00015322,2]
[403810855,1769549438644,-500.0,0.00015322,2]
[403810857,1769549438653,-354.7,0.00015322,2]
[403810858,1769549438663,-486.66435485,0.00015322,2]
[403810859,1769549438673,-1000.0,0.00015344,2]
[403810860,1769549438682,-150.00310176,0.00015407,2]
[403810861,1769549438691,-18028.14714963,0.00015539,2]
[403810862,1769549438701,-166.66,0.00015559,2]
[403810863,1769549438711,-151.0,0.00015637,2]
[403810864,1769549438720,-151.0,0.00015651,2]
[403810865,1769549438732,-151.0,0.00015664,2]
[403810866,1769549438742,-1311.85226688,0.00015781,2]
[403810867,1769549438752,-1813.0,0.00015797,2]
[403810868,1769549438762,-474.35817964,0.00015828,2]
[403810869,1769549438771,-18028.14714963,0.00015834,2]
[403810870,1769549438781,-500.0,0.00015834,2]
[403810871,1769549438790,-353.88730166,0.00015908,2]
[403810872,1769549438800,-500.0,0.00015945,2]
[403810873,1769549438809,-227.0,0.00015964,2]
[403810874,1769549438819,-620.71868282,0.0001599,2]
[403810875,1769549438829,-151.0,0.00015997,2]
[403810876,1769549438838,-416.03456874,0.00016,2]
[403810877,1769549438848,-454277.67060129,0.00016,4]
[403810880,1769549440828,-30375.30372727,0.00016,4]
[403810910,1769549444063,-151.0,0.00015637,2]
[403810911,1769549444073,-18504.78417946,0.00016,4]
[403810912,1769549444085,-729.759996,0.00016,4]
[403810913,1769549444101,-17900.0,0.00016,4]
[403810914,1769549444116,-556.84350524,0.00016,4]
[403810915,1769549444128,-9122.49793244,0.00016,4]
[403810916,1769549444404,-10208.49682375,0.00016,4]
[403810917,1769549444467,-13177.90426045,0.00016,4]
[403810918,1769549444483,-231901.37372933,0.00016,4]
[403810919,1769549444493,-519.69651882,0.00016,4]
[403810920,1769549444503,-1643.0,0.00016005,2]
[403810921,1769549444513,-379.0,0.00016037,2]
[403810922,1769549444523,-500.0,0.00016108,2]
[403810923,1769549444536,-18028.14714963,0.00016129,2]
[403810924,1769549444545,-13416.14620873,0.000162,5]
[403810925,1769549444555,-1852.42,0.00016235,2]
[403810926,1769549444566,-409.66410283,0.00016242,2]
[403810927,1769549444576,-3461.99888782,0.00016281,2]
[403810928,1769549444586,-166.66,0.00016286,2]
[403810929,1769549444597,-166.25,0.00016304,2]
[403810930,1769549444607,-500.0,0.00016373,2]
[403810931,1769549444617,-500.0,0.00016373,2]
[403810932,1769549444626,-500.0,0.00016373,2]
[403810933,1769549444636,-500.0,0.00016373,2]
[403810934,1769549444645,-500.0,0.00016373,2]
[403810935,1769549444654,-384.45580405,0.00016382,2]
[403810936,1769549444664,-1000.0,0.00016388,2]
[403810937,1769549444674,-18028.14714963,0.00016424,2]
[403810938,1769549444688,-500.0,0.00016438,2]
[403810939,1769549444697,-500.0,0.00016438,2]
[403810940,1769549444707,-500.0,0.00016438,2]
[403810941,1769549444717,-500.0,0.00016438,2]
[403810942,1769549444726,-394.52625559,0.00016438,2]
[403810943,1769549444737,-751.72,0.00016438,2]
[403810944,1769549444746,-500.0,0.00016438,2]
[403810945,1769549444756,-500.0,0.00016438,2]
[403810946,1769549444766,-500.0,0.00016438,2]
[403810947,1769549444776,-500.0,0.00016438,2]
[403810948,1769549444785,-500.0,0.00016438,2]
[403810949,1769549444795,-500.0,0.00016438,2]
[403810950,1769549444804,-500.0,0.00016438,2]
[403810951,1769549444814,-500.0,0.00016438,2]
[403810952,1769549444823,-500.0,0.00016438,2]
[403810953,1769549444832,-500.0,0.00016438,2]
[403810954,1769549444841,-500.0,0.00016438,2]
[403810955,1769549444850,-212.23683225,0.00016438,2]
[403810956,1769549444860,-2118.94,0.00016438,2]
[403810958,1769549444873,-2118.94,0.00016438,2]
[403810960,1769549444882,-2118.94,0.00016438,2]
[403810962,1769549444892,-2118.94,0.00016438,2]
[403810964,1769549444901,-2118.94,0.00016438,2]
[403810966,1769549444911,-2118.94,0.00016438,2]
[403810968,1769549444920,-2118.94,0.00016438,2]
[403810970,1769549444929,-2118.94,0.00016438,2]
[403810972,1769549444939,-2118.94,0.00016438,2]
[403810974,1769549444948,-2118.94,0.00016438,2]
[403810976,1769549444957,-2118.94,0.00016438,2]
[403810978,1769549444966,-2118.94,0.00016438,2]
[403810980,1769549444975,-2118.94,0.00016438,2]
[403810982,1769549444986,-2118.94,0.00016438,2]
[403810984,1769549444995,-2118.94,0.00016438,2]
[403810986,1769549445004,-2118.94,0.00016438,2]
[403810988,1769549445014,-2118.94,0.00016438,2]
[403810990,1769549445023,-2118.94,0.00016438,2]
[403810992,1769549445033,-2118.94,0.00016438,2]
[403810994,1769549445042,-2118.94,0.00016438,2]
[403810996,1769549445051,-2118.94,0.00016438,2]
[403810998,1769549445061,-2118.94,0.00016438,2]
[403811000,1769549445070,-2118.94,0.00016438,2]
[403811002,1769549445080,-2119.02292142,0.00016438,2]
[403811005,1769549445090,-500.0,0.00016438,2]
[403811007,1769549445099,-500.0,0.00016438,2]
[403811009,1769549445108,-500.0,0.00016438,2]
[403811011,1769549445118,-500.0,0.00016438,2]
[403811013,1769549445127,-500.0,0.00016438,2]
[403811015,1769549445136,-500.0,0.00016438,2]
[403811017,1769549445146,-500.0,0.00016438,2]
[403811019,1769549445155,-500.0,0.00016438,2]
[403811021,1769549445164,-500.0,0.00016438,2]
[403811023,1769549445173,-500.0,0.00016438,2]
[403811025,1769549445182,-500.0,0.00016438,2]
[403811027,1769549445192,-500.0,0.00016438,2]
[403811029,1769549445201,-500.0,0.00016438,2]
[403811030,1769549445210,-500.0,0.00016438,2]
[403811031,1769549445219,-500.0,0.00016438,2]
[403811032,1769549445229,-500.0,0.00016438,2]
[403811033,1769549445238,-500.0,0.00016438,2]
[403811034,1769549445248,-500.0,0.00016438,2]
[403811035,1769549445267,-500.0,0.00016438,2]
[403811036,1769549445278,-500.0,0.00016438,2]
[403811037,1769549445287,-500.0,0.00016438,2]
[403811038,1769549445297,-500.0,0.00016438,2]
[403811039,1769549445306,-500.0,0.00016438,2]
[403811040,1769549445315,-500.0,0.00016438,2]
[403811041,1769549445325,-500.0,0.00016438,2]
[403811042,1769549445334,-500.0,0.00016438,2]
[403811043,1769549445344,-500.0,0.00016438,2]
[403811044,1769549445353,-185.0483376,0.00016438,2]
[403811045,1769549445362,-500.0,0.00016438,2]
[403811046,1769549445371,-500.0,0.00016438,2]
[403811047,1769549445381,-500.0,0.00016438,2]
[403811048,1769549445391,-500.0,0.00016438,2]
[403811049,1769549445400,-500.0,0.00016438,2]
[403811050,1769549445409,-500.0,0.00016438,2]
[403811051,1769549445419,-500.0,0.00016438,2]
[403811052,1769549445429,-500.0,0.00016438,2]
[403811053,1769549445438,-500.0,0.00016438,2]
[403811054,1769549445448,-500.0,0.00016438,2]
[403811055,1769549445458,-500.0,0.00016438,2]
[403811056,1769549445467,-500.0,0.00016438,2]
[403811057,1769549445477,-500.0,0.00016438,2]
[403811058,1769549445487,-500.0,0.00016438,2]
[403811059,1769549445496,-500.0,0.00016438,2]
[403811060,1769549445507,-500.0,0.00016438,2]
[403811061,1769549445517,-500.0,0.00016438,2]
[403811062,1769549445527,-500.0,0.00016438,2]
[403811063,1769549445541,-500.0,0.00016438,2]
[403811064,1769549445550,-500.0,0.00016438,2]
[403811065,1769549445560,-500.0,0.00016438,2]
[403811066,1769549445571,-500.0,0.00016438,2]
[403811067,1769549445582,-500.0,0.00016438,2]
[403811068,1769549445593,-500.0,0.00016438,2]
[403811069,1769549445604,-500.0,0.00016438,2]
[403811070,1769549445614,-500.0,0.00016438,2]
[403811071,1769549445625,-500.0,0.00016438,2]
[403811072,1769549445635,-500.0,0.00016438,2]
[403811073,1769549445645,-500.0,0.00016438,2]
[403811074,1769549445656,-500.0,0.00016438,2]
[403811075,1769549445666,-7758.2,0.00016495,2]
[403811076,1769549445677,-353.88730166,0.00016572,2]
[403811077,1769549445687,-751.72,0.00016712,2]
[403811078,1769549445696,-18028.14714963,0.0001672,2]
[403811079,1769549445706,-1680.0,0.00016739,2]
[403811080,1769549445715,-195.0,0.00016741,2]
[403811081,1769549445724,-193.0,0.00016741,2]
[403811082,1769549445735,-300.0,0.00016741,2]
[403811083,1769549445745,-2500.0,0.00016741,2]
[403811084,1769549445755,-600.0,0.00016741,2]
[403811085,1769549445764,-5000.0,0.00016741,2]
[403811086,1769549445773,-200.0,0.00016744,2]
[403811087,1769549445783,-250.0,0.00016744,2]
[403811088,1769549445793,-193.8,0.0001675,2]
[403811089,1769549445802,-150.00310176,0.00016779,2]
[403811090,1769549445815,-6107.37640195,0.00016781,2]
[403811091,1769549445825,-9136.26983912,0.00016781,2]
[403811092,1769549445835,-12361.6944,0.00016781,2]
[403811093,1769549445846,-1000.0,0.00016809,2]
[403811094,1769549445855,-166.66,0.00016824,2]
[403811095,1769549445865,-500.0,0.00016921,2]
[403811096,1769549445875,-1000.44164958,0.00016921,2]
[403811097,1769549445884,-561.30412969,0.00016921,2]
[403811098,1769549445894,-687.78066829,0.00016921,2]
[403811099,1769549445904,-29999.99,0.00016922,2]
[403811100,1769549445914,-1268.07,0.00016922,2]
[403811101,1769549445924,-9999.99,0.00016922,2]
[403811102,1769549445934,-751.72,0.00016986,2]
[403811103,1769549445943,-63780.09,0.00017,2]
[403811104,1769549445953,-250.0,0.00017,2]
[403811105,1769549445963,-1000.0,0.00017002,2]
[403811106,1769549445972,-18028.14714963,0.00017015,2]
[403811107,1769549445982,-166.25,0.0001721,2]
[403811108,1769549445995,-353.88730166,0.00017236,2]
[403811109,1769549446004,-297.22,0.00017244,7]
[403811110,1769549446015,-751.72,0.0001726,2]
[403811111,1769549446024,-18028.14714963,0.0001731,2]
[403811112,1769549446034,-166.66,0.00017361,2]
[403811113,1769549446044,-9300.0,0.000175,6]
[403811114,1769549446054,-751.72,0.00017534,2]
[403811115,1769549446063,-12500.0,0.000176,6]
[403811116,1769549446075,-18028.14714963,0.00017605,2]
[403811117,1769549446086,-1000.0,0.00017617,2]
[403811118,1769549446095,-150.0,0.00017644,2]
[403811119,1769549446106,-150.0,0.00017644,2]
[403811120,1769549446115,-150.0,0.00017644,2]
[403811121,1769549446125,-150.0,0.00017644,2]
[403811122,1769549446135,-150.0,0.00017644,2]
[403811123,1769549446144,-150.0,0.00017644,2]
[403811124,1769549446155,-150.0,0.00017644,2]
[403811125,1769549446166,-213.19994559,0.00017644,2]
[403811126,1769549446178,-150.0,0.00017644,2]
[403811127,1769549446192,-150.0,0.00017644,2]
[403811128,1769549446203,-150.0,0.00017644,2]
[403811129,1769549446214,-243.9850094,0.00017644,2]
[403811130,1769549446223,-150.0,0.00017644,2]
[403811131,1769549446233,-150.0,0.00017644,2]
[403811132,1769549446244,-150.0,0.00017644,2]
[403811133,1769549446254,-150.0,0.00017644,2]
[403811134,1769549446264,-500.0,0.00017644,2]
[403811135,1769549446275,-150.0,0.00017644,2]
[403811136,1769549446286,-202.67953144,0.00017644,2]
[403811137,1769549446296,-150.0,0.00017644,2]
[403811138,1769549446306,-500.0,0.00017644,2]
[403811139,1769549446316,-150.0,0.00017644,2]
[403811140,1769549446326,-500.0,0.00017644,2]
[403811141,1769549446335,-500.0,0.00017644,2]
[403811142,1769549446346,-500.0,0.00017644,2]
[403811143,1769549446355,-500.0,0.00017644,2]
[403811144,1769549446366,-500.0,0.00017644,2]
[403811145,1769549446376,-150.0,0.00017644,2]
[403811146,1769549446387,-150.0,0.00017644,2]
[403811147,1769549446397,-500.0,0.00017644,2]
[403811148,1769549446407,-500.0,0.00017644,2]
[403811149,1769549446416,-500.0,0.00017644,2]
[403811150,1769549446427,-500.0,0.00017644,2]
[403811151,1769549446436,-500.0,0.00017644,2]
[403811152,1769549446446,-150.0,0.00017644,2]
[403811153,1769549446457,-417.0,0.00017644,2]
[403811154,1769549446468,-150.0,0.00017644,2]
[403811155,1769549446478,-423.0,0.00017644,2]
[403811156,1769549446488,-500.0,0.00017644,2]
[403811157,1769549446498,-500.0,0.00017644,2]
[403811158,1769549446508,-150.0,0.00017699,2]
[403811159,1769549446517,-150.0,0.00017699,2]
[403811160,1769549446530,-150.0,0.00017699,2]
[403811161,1769549446542,-150.0,0.00017699,2]
[403811162,1769549446553,-150.0,0.00017699,2]
[403811163,1769549446563,-150.0,0.00017699,2]
[403811164,1769549446574,-150.19824857,0.00017699,2]
[403811165,1769549446584,-150.0,0.00017699,2]
[403811166,1769549446594,-150.93589511,0.00017699,2]
[403811167,1769549446604,-150.0,0.00017699,2]
[403811168,1769549446614,-500.0,0.00017699,2]
[403811169,1769549446625,-150.0,0.00017699,2]
[403811171,1769549446635,-150.0,0.00017699,2]
[403811172,1769549446644,-225.73815935,0.00017699,2]
[403811173,1769549446654,-500.0,0.00017699,2]
[403811174,1769549446663,-150.0,0.00017699,2]
[403811175,1769549446672,-500.0,0.00017699,2]
[403811176,1769549446682,-500.0,0.00017699,2]
[403811177,1769549446691,-500.0,0.00017699,2]
[403811178,1769549446701,-500.0,0.00017699,2]
[403811179,1769549446711,-500.0,0.00017699,2]
[403811180,1769549446720,-500.0,0.00017699,2]
[403811181,1769549446730,-500.0,0.00017699,2]
[403811182,1769549446741,-500.0,0.00017699,2]
[403811183,1769549446751,-500.0,0.00017699,2]
[403811184,1769549446760,-500.0,0.00017699,2]
[403811185,1769549446769,-417.0,0.00017699,2]
[403811186,1769549446779,-150.0,0.00017699,2]
[403811187,1769549446791,-500.0,0.00017699,2]
[403811188,1769549446801,-423.0,0.00017699,2]
[403811189,1769549446810,-500.0,0.00017699,2]
[403811190,1769549446819,-15600.0,0.000177,6]
[403811191,1769549446829,-427.21,0.00017728,2]
[403811193,1769549446839,-150.99,0.00017728,2]
[403811194,1769549446848,-60353.39,0.00017728,2]
[403811195,1769549446857,-9999.99,0.00017728,2]
[403811196,1769549446866,-857.23,0.00017728,2]
[403811197,1769549446875,-299.99,0.00017728,4]
[403811198,1769549446885,-3825.33,0.00017728,2]
[403811199,1769549446895,-9999.99,0.00017728,2]
[403811200,1769549446904,-13999.01,0.00017728,2]
[403811201,1769549446914,-9999.99,0.00017728,2]
[403811202,1769549446923,-150.99,0.00017728,2]
[403811203,1769549446932,-3696.67,0.00017728,2]
[403811204,1769549446942,-999.99,0.00017728,2]
[403811205,1769549446951,-56746.54,0.00017728,2]
[403811206,1769549446962,-31531.48,0.00017728,2]
[403811207,1769549446972,-4999.99,0.00017728,2]
[403811208,1769549446983,-499.99,0.00017728,2]
[403811209,1769549446993,-9999.99,0.00017728,2]
[403811210,1769549447003,-1195.66,0.00017728,2]
[403811211,1769549447012,-514.32,0.00017728,2]
[403811212,1769549447022,-5900.07,0.00017728,2]
[403811213,1769549447031,-9999.99,0.00017728,2]
[403811214,1769549447041,-150.0,0.00017754,2]
[403811215,1769549447050,-150.0,0.00017754,2]
[403811216,1769549447060,-150.0,0.00017754,2]
[403811217,1769549447070,-150.0,0.00017754,2]
[403811218,1769549447080,-150.0,0.00017754,2]
[403811219,1769549447091,-401.7333692,0.00017754,2]
[403811220,1769549447101,-150.0,0.00017754,2]
[403811221,1769549447112,-200.0,0.00017754,2]
[403811222,1769549447121,-500.0,0.00017754,2]
[403811223,1769549447131,-150.0,0.00017754,2]
[403811224,1769549447140,-500.0,0.00017754,2]
[403811225,1769549447149,-500.0,0.00017754,2]
[403811226,1769549447158,-500.0,0.00017754,2]
[403811227,1769549447169,-500.0,0.00017754,2]
[403811228,1769549447179,-500.0,0.00017754,2]
[403811229,1769549447190,-500.0,0.00017754,2]
[403811230,1769549447199,-500.0,0.00017754,2]
[403811231,1769549447209,-500.0,0.00017754,2]
[403811232,1769549447219,-173.31089418,0.00017754,2]
[403811233,1769549447228,-500.0,0.00017754,2]
[403811234,1769549447238,-417.0,0.00017754,2]
[403811235,1769549447248,-251.98965372,0.00017754,2]
[403811236,1769549447257,-500.0,0.00017754,2]
[403811237,1769549447266,-423.0,0.00017754,2]
[403811238,1769549447276,-500.0,0.00017754,2]
[403811239,1769549447285,-3100.0,0.000178,6]
[403811240,1769549447294,-751.72565862,0.00017808,2]
[403811241,1769549447304,-500.0,0.00017808,2]
[403811242,1769549447315,-150.0,0.00017808,2]
[403811243,1769549447324,-150.0,0.00017808,2]
[403811244,1769549447334,-150.0,0.00017808,2]